[Event "Titled Tuesday Blitz December 06 Early 2022"]
[White "Larina, Maria"]
[Black "Demin, Vladimir"]
[WhiteFideId "24113182"]
[BlackFideId "4167457"]
[WhiteElo "1848"]
[BlackElo "2560"]
[Result "0-1"]
[Round "01"]
[TimeControl "180+1"]
[Date "2022.12.07"]
[WhiteClock "0:00:01"]
[BlackClock "0:00:19"]

1. e4 {[%clk 0:02:43]}  e5 {[%clk 0:02:51]} 2. Nf3 {[%clk 0:00:54]}  Nc6 {[%clk 0:02:49]} 3. Nc3 {[%clk 0:00:54]}  Nf6 {[%clk 0:02:48]} 4. Bb5 {[%clk 0:00:54]}  Bb4 {[%clk 0:02:29]} 5. O-O {[%clk 0:00:54]}  O-O {[%clk 0:02:24]} 6. d3 {[%clk 0:00:53]}  d6 {[%clk 0:02:13]} 7. Ne2 {[%clk 0:00:51]}  Bc5 {[%clk 0:02:05]} 8. c3 {[%clk 0:00:47]}  Ne7 {[%clk 0:01:59]} 9. Ng3 {[%clk 0:00:46]}  c6 {[%clk 0:01:56]} 10. Ba4 {[%clk 0:00:45]}  Ng6 {[%clk 0:01:48]} 11. h3 {[%clk 0:00:43]}  b5 {[%clk 0:01:43]} 12. Bc2 {[%clk 0:00:42]}  Bb6 {[%clk 0:01:39]} 13. Be3 {[%clk 0:00:41]}  Bxe3 {[%clk 0:01:29]} 14. fxe3 {[%clk 0:00:40]}  Rb8 {[%clk 0:01:30]} 15. Nf5 {[%clk 0:00:32]}  d5 {[%clk 0:01:27]} 16. Qe1 {[%clk 0:00:21]}  Be6 {[%clk 0:01:21]} 17. Ng5 {[%clk 0:00:18]}  dxe4 {[%clk 0:01:16]} 18. dxe4 {[%clk 0:00:16]}  Qb6 {[%clk 0:01:13]} 19. Nxe6 {[%clk 0:00:15]}  fxe6 {[%clk 0:01:10]} 20. Ng3 {[%clk 0:00:15]}  Rfd8 {[%clk 0:01:05]} 21. Bb3 {[%clk 0:00:14]}  c5 {[%clk 0:01:02]} 22. Kh2 {[%clk 0:00:12]}  a5 {[%clk 0:00:58]} 23. a4 {[%clk 0:00:11]}  c4 {[%clk 0:00:55]} 24. Bc2 {[%clk 0:00:09]}  b4 {[%clk 0:00:53]} 25. Rd1 {[%clk 0:00:06]}  b3 {[%clk 0:00:44]} 26. Bb1 {[%clk 0:00:06]}  Qc6 {[%clk 0:00:40]} 27. Qe2 {[%clk 0:00:05]}  Rxd1 {[%clk 0:00:32]} 28. Rxd1 {[%clk 0:00:04]}  Qxa4 {[%clk 0:00:33]} 29. Nh5 {[%clk 0:00:03]}  Nxh5 {[%clk 0:00:23]} 30. Qxh5 {[%clk 0:00:04]}  Qe8 {[%clk 0:00:23]} 31. Qg5 {[%clk 0:00:03]}  Qe7 {[%clk 0:00:19]} 32. Qh5 {[%clk 0:00:03]}  a4 {[%clk 0:00:18]} 33. g4 {[%clk 0:00:03]}  a3 {[%clk 0:00:18]} 34. bxa3 {[%clk 0:00:03]}  Qxa3 {[%clk 0:00:18]} 35. Rf1 {[%clk 0:00:03]}  Qe7 {[%clk 0:00:18]} 36. g5 {[%clk 0:00:02]}  Rf8 {[%clk 0:00:18]} 37. Rxf8+ {[%clk 0:00:01]}  Qxf8 {[%clk 0:00:19]} 0-1


[Site "https://www.chess.com"]

[Event "Titled Tuesday Blitz December 06 Early 2022"]
[White "Mahajan, Rushaan"]
[Black "Timofeev, Artyom"]
[WhiteFideId "30934222"]
[BlackFideId "4140419"]
[WhiteElo "2148"]
[BlackElo "2586"]
[Result "0-1"]
[Round "01"]
[TimeControl "180+1"]
[Date "2022.12.07"]
[WhiteClock "0:00:44"]
[BlackClock "0:00:50"]

1. Nf3 {[%clk 0:03:00]}  d5 {[%clk 0:02:36]} 2. g3 {[%clk 0:03:00]}  Nf6 {[%clk 0:02:27]} 3. Bg2 {[%clk 0:03:00]}  g6 {[%clk 0:02:22]} 4. b3 {[%clk 0:03:00]}  Bg7 {[%clk 0:02:16]} 5. Bb2 {[%clk 0:03:00]}  O-O {[%clk 0:02:10]} 6. c4 {[%clk 0:03:01]}  c6 {[%clk 0:02:04]} 7. O-O {[%clk 0:03:00]}  a5 {[%clk 0:01:51]} 8. Nc3 {[%clk 0:02:59]}  d4 {[%clk 0:01:46]} 9. Na4 {[%clk 0:02:58]}  Ne4 {[%clk 0:01:42]} 10. Qc2 {[%clk 0:02:21]}  Bf5 {[%clk 0:01:39]} 11. Nxd4 {[%clk 0:02:18]}  Nxg3 {[%clk 0:01:34]} 12. Nxf5 {[%clk 0:02:18]}  Nxf5 {[%clk 0:01:34]} 13. Bxg7 {[%clk 0:02:16]}  Kxg7 {[%clk 0:01:34]} 14. e3 {[%clk 0:02:13]}  Kg8 {[%clk 0:01:33]} 15. d4 {[%clk 0:02:13]}  Nd7 {[%clk 0:01:32]} 16. Rad1 {[%clk 0:02:10]}  Nf6 {[%clk 0:01:31]} 17. Kh1 {[%clk 0:02:08]}  Nh4 {[%clk 0:01:30]} 18. f4 {[%clk 0:02:00]}  Rc8 {[%clk 0:01:27]} 19. Nc5 {[%clk 0:01:57]}  b6 {[%clk 0:01:26]} 20. Ne4 {[%clk 0:01:57]}  Nf5 {[%clk 0:01:23]} 21. Rfe1 {[%clk 0:01:47]}  e6 {[%clk 0:01:22]} 22. Ng3 {[%clk 0:01:42]}  Ng4 {[%clk 0:01:21]} 23. Nxf5 {[%clk 0:01:41]}  exf5 {[%clk 0:01:21]} 24. h3 {[%clk 0:01:36]}  Nf6 {[%clk 0:01:21]} 25. e4 {[%clk 0:01:37]}  fxe4 {[%clk 0:01:20]} 26. Bxe4 {[%clk 0:01:37]}  Qd6 {[%clk 0:01:19]} 27. Qf2 {[%clk 0:01:33]}  Nh5 {[%clk 0:01:19]} 28. Rf1 {[%clk 0:01:24]}  Rce8 {[%clk 0:01:18]} 29. Rde1 {[%clk 0:01:23]}  c5 {[%clk 0:01:17]} 30. Bd5 {[%clk 0:01:22]}  cxd4 {[%clk 0:01:15]} 31. Qxd4 {[%clk 0:01:17]}  Rxe1 {[%clk 0:01:10]} 32. Bxf7+ {[%clk 0:01:09]}  Rxf7 {[%clk 0:01:10]} 33. Qxd6 {[%clk 0:01:08]}  Rxf1+ {[%clk 0:01:10]} 34. Kg2 {[%clk 0:01:09]}  R1xf4 {[%clk 0:01:09]} 35. Qxb6 {[%clk 0:01:05]}  Rf2+ {[%clk 0:01:06]} 36. Qxf2 {[%clk 0:01:04]}  Rxf2+ {[%clk 0:01:06]} 37. Kxf2 {[%clk 0:01:05]}  Kf7 {[%clk 0:01:07]} 38. a3 {[%clk 0:01:04]}  Ke6 {[%clk 0:01:07]} 39. b4 {[%clk 0:01:04]}  a4 {[%clk 0:01:07]} 40. Kf3 {[%clk 0:01:03]}  Ke5 {[%clk 0:01:07]} 41. Kg4 {[%clk 0:01:03]}  h6 {[%clk 0:01:07]} 42. h4 {[%clk 0:00:47]}  Nf6+ {[%clk 0:01:07]} 43. Kf3 {[%clk 0:00:47]}  Kd4 {[%clk 0:01:07]} 44. b5 {[%clk 0:00:42]}  Kxc4 {[%clk 0:00:52]} 45. b6 {[%clk 0:00:42]}  Nd7 {[%clk 0:00:52]} 46. b7 {[%clk 0:00:43]}  Kd5 {[%clk 0:00:50]} 47. Kf4 {[%clk 0:00:43]}  Kc6 {[%clk 0:00:50]} 48. h5 {[%clk 0:00:41]}  gxh5 {[%clk 0:00:49]} 49. Kf5 {[%clk 0:00:41]}  Kxb7 {[%clk 0:00:50]} 50. Kg6 {[%clk 0:00:42]}  Kc6 {[%clk 0:00:50]} 51. Kxh5 {[%clk 0:00:42]}  Kb5 {[%clk 0:00:51]} 52. Kxh6 {[%clk 0:00:43]}  Kc4 {[%clk 0:00:50]} 53. Kg5 {[%clk 0:00:44]}  Kb3 {[%clk 0:00:50]} 0-1


[Site "https://www.chess.com"]

[Event "Titled Tuesday Blitz December 06 Early 2022"]
[White "Martin, Lewis"]
[Black "Goroshkov, Maksym"]
[WhiteFideId "410551"]
[BlackFideId "14142716"]
[WhiteElo "2145"]
[BlackElo "2258"]
[Result "0-1"]
[Round "01"]
[TimeControl "180+1"]
[Date "2022.12.07"]
[WhiteClock "0:00:20"]
[BlackClock "0:00:25"]

1. e4 {[%clk 0:02:53]}  e5 {[%clk 0:02:44]} 2. Nf3 {[%clk 0:02:41]}  d6 {[%clk 0:01:53]} 3. d4 {[%clk 0:02:38]}  Bg4 {[%clk 0:01:52]} 4. dxe5 {[%clk 0:02:32]}  Nd7 {[%clk 0:01:53]} 5. Be2 {[%clk 0:02:28]}  Bxf3 {[%clk 0:01:52]} 6. Bxf3 {[%clk 0:02:28]}  dxe5 {[%clk 0:01:53]} 7. Nc3 {[%clk 0:02:26]}  Ngf6 {[%clk 0:01:53]} 8. O-O {[%clk 0:02:23]}  c6 {[%clk 0:01:53]} 9. Be3 {[%clk 0:02:17]}  Be7 {[%clk 0:01:52]} 10. Qd2 {[%clk 0:02:16]}  Qc7 {[%clk 0:01:51]} 11. Rad1 {[%clk 0:02:14]}  O-O {[%clk 0:01:50]} 12. a3 {[%clk 0:02:11]}  Rad8 {[%clk 0:01:50]} 13. Qc1 {[%clk 0:02:04]}  Nc5 {[%clk 0:01:48]} 14. Rxd8 {[%clk 0:01:58]}  Rxd8 {[%clk 0:01:47]} 15. Rd1 {[%clk 0:01:59]}  Ne6 {[%clk 0:01:44]} 16. Ne2 {[%clk 0:01:48]}  b6 {[%clk 0:01:20]} 17. h3 {[%clk 0:01:43]}  Bc5 {[%clk 0:01:17]} 18. Bxc5 {[%clk 0:01:32]}  Nxc5 {[%clk 0:01:18]} 19. Ng3 {[%clk 0:01:29]}  Rxd1+ {[%clk 0:01:10]} 20. Qxd1 {[%clk 0:01:29]}  Qd7 {[%clk 0:01:11]} 21. Qxd7 {[%clk 0:01:24]}  Nfxd7 {[%clk 0:01:08]} 22. b3 {[%clk 0:01:22]}  g6 {[%clk 0:01:01]} 23. Kf1 {[%clk 0:01:22]}  Ne6 {[%clk 0:01:00]} 24. Ke1 {[%clk 0:01:21]}  Nd4 {[%clk 0:00:58]} 25. Bd1 {[%clk 0:01:20]}  Nc5 {[%clk 0:00:58]} 26. Kd2 {[%clk 0:01:18]}  h5 {[%clk 0:00:54]} 27. f3 {[%clk 0:01:16]}  Nce6 {[%clk 0:00:49]} 28. Nf1 {[%clk 0:01:14]}  Nf4 {[%clk 0:00:47]} 29. Ne3 {[%clk 0:01:14]}  Nb5 {[%clk 0:00:44]} 30. a4 {[%clk 0:01:11]}  Nd6 {[%clk 0:00:44]} 31. h4 {[%clk 0:00:54]}  Kf8 {[%clk 0:00:40]} 32. g4 {[%clk 0:00:47]}  hxg4 {[%clk 0:00:39]} 33. Nxg4 {[%clk 0:00:47]}  Ng2 {[%clk 0:00:38]} 34. Nxe5 {[%clk 0:00:44]}  c5 {[%clk 0:00:39]} 35. Nc6 {[%clk 0:00:39]}  a5 {[%clk 0:00:37]} 36. Ne5 {[%clk 0:00:37]}  Ke7 {[%clk 0:00:36]} 37. Be2 {[%clk 0:00:27]}  Nxh4 {[%clk 0:00:35]} 38. Ke3 {[%clk 0:00:25]}  Ng2+ {[%clk 0:00:32]} 39. Kf2 {[%clk 0:00:21]}  Nf4 {[%clk 0:00:33]} 40. Bf1 {[%clk 0:00:21]}  f5 {[%clk 0:00:32]} 41. Kg3 {[%clk 0:00:17]}  g5 {[%clk 0:00:31]} 42. exf5 {[%clk 0:00:16]}  Nxf5+ {[%clk 0:00:32]} 43. Kg4 {[%clk 0:00:16]}  Ne3+ {[%clk 0:00:33]} 44. Kxg5 {[%clk 0:00:16]}  Ne6+ {[%clk 0:00:33]} 45. Kg6 {[%clk 0:00:16]}  Nxf1 {[%clk 0:00:34]} 46. Nc4 {[%clk 0:00:16]}  Nd4 {[%clk 0:00:33]} 47. Nxb6 {[%clk 0:00:16]}  Nxc2 {[%clk 0:00:32]} 48. Nc4 {[%clk 0:00:17]}  Nd4 {[%clk 0:00:29]} 49. Nxa5 {[%clk 0:00:18]}  Nxf3 {[%clk 0:00:29]} 50. Kf5 {[%clk 0:00:18]}  Kd6 {[%clk 0:00:28]} 51. Ke4 {[%clk 0:00:18]}  N3d2+ {[%clk 0:00:25]} 52. Kd3 {[%clk 0:00:18]}  Kd5 {[%clk 0:00:26]} 53. Ke2 {[%clk 0:00:19]}  Kd4 {[%clk 0:00:25]} 54. Nc6+ {[%clk 0:00:18]}  Kd5 {[%clk 0:00:25]} 55. Na5 {[%clk 0:00:18]}  Kd6 {[%clk 0:00:24]} 56. Nb7+ {[%clk 0:00:17]}  Kc6 {[%clk 0:00:24]} 57. Na5+ {[%clk 0:00:17]}  Kb6 {[%clk 0:00:24]} 58. Nc4+ {[%clk 0:00:18]}  Nxc4 {[%clk 0:00:24]} 59. bxc4 {[%clk 0:00:19]}  Ng3+ {[%clk 0:00:25]} 60. Kd3 {[%clk 0:00:19]}  Nf5 {[%clk 0:00:25]} 61. Kc3 {[%clk 0:00:20]}  Nd6 {[%clk 0:00:25]} 62. Kb3 {[%clk 0:00:20]}  Ka5 {[%clk 0:00:25]} 0-1


[Site "https://www.chess.com"]

[Event "Titled Tuesday Blitz December 06 Early 2022"]
[White "Mendez Fortes, Eduardo Jesus"]
[Black "Fabris, Alberto"]
[WhiteFideId "3502376"]
[BlackFideId "801348"]
[WhiteElo "2307"]
[BlackElo "2164"]
[Result "1/2-1/2"]
[Round "01"]
[TimeControl "180+1"]
[Date "2022.12.07"]
[WhiteClock "0:00:19"]
[BlackClock "0:00:10"]

1. e4 {[%clk 0:02:37]}  c6 {[%clk 0:02:50]} 2. d4 {[%clk 0:02:36]}  d5 {[%clk 0:02:45]} 3. Nc3 {[%clk 0:02:35]}  dxe4 {[%clk 0:02:39]} 4. Nxe4 {[%clk 0:02:36]}  Bf5 {[%clk 0:02:34]} 5. Ng3 {[%clk 0:02:36]}  Bg6 {[%clk 0:02:32]} 6. Nh3 {[%clk 0:02:36]}  h6 {[%clk 0:02:27]} 7. Nf4 {[%clk 0:02:34]}  Bh7 {[%clk 0:02:27]} 8. Bc4 {[%clk 0:02:34]}  e6 {[%clk 0:02:20]} 9. Qe2 {[%clk 0:02:33]}  Nf6 {[%clk 0:02:15]} 10. c3 {[%clk 0:02:17]}  Be7 {[%clk 0:02:14]} 11. Ngh5 {[%clk 0:02:16]}  Nxh5 {[%clk 0:02:06]} 12. Nxh5 {[%clk 0:02:17]}  O-O {[%clk 0:02:04]} 13. Qg4 {[%clk 0:02:08]}  Bg6 {[%clk 0:02:04]} 14. Nf4 {[%clk 0:02:05]}  Bf5 {[%clk 0:02:01]} 15. Qf3 {[%clk 0:02:05]}  Nd7 {[%clk 0:01:55]} 16. g4 {[%clk 0:02:04]}  Bh7 {[%clk 0:01:53]} 17. h4 {[%clk 0:02:03]}  e5 {[%clk 0:01:50]} 18. Nh5 {[%clk 0:01:59]}  exd4 {[%clk 0:01:45]} 19. Bd2 {[%clk 0:01:59]}  Ne5 {[%clk 0:01:43]} 20. Qe2 {[%clk 0:01:53]}  Nxc4 {[%clk 0:01:39]} 21. Qxc4 {[%clk 0:01:54]}  Bxh4 {[%clk 0:01:27]} 22. O-O-O {[%clk 0:01:49]}  Bf6 {[%clk 0:01:16]} 23. Nxf6+ {[%clk 0:01:44]}  Qxf6 {[%clk 0:01:15]} 24. cxd4 {[%clk 0:01:44]}  Qg6 {[%clk 0:01:13]} 25. Be3 {[%clk 0:01:41]}  Qb1+ {[%clk 0:01:10]} 26. Kd2 {[%clk 0:01:41]}  Qxb2+ {[%clk 0:01:10]} 27. Ke1 {[%clk 0:01:41]}  Rae8 {[%clk 0:01:06]} 28. g5 {[%clk 0:01:40]}  hxg5 {[%clk 0:00:59]} 29. Qc5 {[%clk 0:01:36]}  f5 {[%clk 0:00:40]} 30. Qc4+ {[%clk 0:01:26]}  Rf7 {[%clk 0:00:37]} 31. Rxh7 {[%clk 0:01:20]}  f4 {[%clk 0:00:34]} 32. Rh8+ {[%clk 0:01:12]}  Kxh8 {[%clk 0:00:33]} 33. Qxf7 {[%clk 0:01:13]}  Re4 {[%clk 0:00:24]} 34. Qg6 {[%clk 0:01:11]}  Qc2 {[%clk 0:00:21]} 35. Qh5+ {[%clk 0:01:02]}  Kg8 {[%clk 0:00:21]} 36. Rd2 {[%clk 0:00:49]}  Qb1+ {[%clk 0:00:20]} 37. Rd1 {[%clk 0:00:49]}  Qc2 {[%clk 0:00:19]} 38. Qxg5 {[%clk 0:00:21]}  fxe3 {[%clk 0:00:17]} 39. fxe3 {[%clk 0:00:21]}  Re8 {[%clk 0:00:12]} 40. Rd2 {[%clk 0:00:20]}  Qc1+ {[%clk 0:00:10]} 41. Ke2 {[%clk 0:00:20]}  Qc4+ {[%clk 0:00:10]} 42. Rd3 {[%clk 0:00:20]}  Qc2+ {[%clk 0:00:09]} 43. Rd2 {[%clk 0:00:20]}  Qc4+ {[%clk 0:00:10]} 44. Kd1 {[%clk 0:00:20]}  Qf1+ {[%clk 0:00:09]} 45. Kc2 {[%clk 0:00:20]}  Qc4+ {[%clk 0:00:09]} 46. Kb2 {[%clk 0:00:20]}  Qb4+ {[%clk 0:00:09]} 47. Kc1 {[%clk 0:00:20]}  Qc3+ {[%clk 0:00:09]} 48. Rc2 {[%clk 0:00:20]}  Qe1+ {[%clk 0:00:09]} 49. Kb2 {[%clk 0:00:18]}  Qb4+ {[%clk 0:00:10]} 50. Ka1 {[%clk 0:00:18]}  Qe1+ {[%clk 0:00:10]} 51. Kb2 {[%clk 0:00:18]}  Qb4+ {[%clk 0:00:10]} 52. Kc1 {[%clk 0:00:19]}  Qe1+ {[%clk 0:00:10]} 53. Kb2 {[%clk 0:00:19]} 1/2-1/2


[Site "https://www.chess.com"]

[Event "Titled Tuesday Blitz December 06 Early 2022"]
[White "Miszler, Levente"]
[Black "Gormally, Daniel W"]
[WhiteFideId "763276"]
[BlackFideId "406465"]
[WhiteElo "2176"]
[BlackElo "2553"]
[Result "1/2-1/2"]
[Round "01"]
[TimeControl "180+1"]
[Date "2022.12.07"]
[WhiteClock "0:00:10"]
[BlackClock "0:00:22"]

1. Nf3 {[%clk 0:02:50]}  Nf6 {[%clk 0:02:51]} 2. c4 {[%clk 0:02:05]}  g6 {[%clk 0:02:44]} 3. g3 {[%clk 0:02:02]}  Bg7 {[%clk 0:02:44]} 4. Bg2 {[%clk 0:02:01]}  O-O {[%clk 0:02:39]} 5. O-O {[%clk 0:02:01]}  d6 {[%clk 0:02:36]} 6. Nc3 {[%clk 0:01:59]}  e5 {[%clk 0:02:35]} 7. d3 {[%clk 0:01:57]}  Nbd7 {[%clk 0:02:34]} 8. Rb1 {[%clk 0:01:57]}  a5 {[%clk 0:02:32]} 9. a3 {[%clk 0:01:57]}  Re8 {[%clk 0:02:32]} 10. e4 {[%clk 0:01:54]}  Nc5 {[%clk 0:02:26]} 11. b4 {[%clk 0:01:53]}  axb4 {[%clk 0:02:26]} 12. axb4 {[%clk 0:01:54]}  Ne6 {[%clk 0:02:26]} 13. Bb2 {[%clk 0:01:47]}  c6 {[%clk 0:02:22]} 14. Ra1 {[%clk 0:01:46]}  Bd7 {[%clk 0:02:22]} 15. Qb3 {[%clk 0:01:35]}  Qb6 {[%clk 0:02:20]} 16. Ra3 {[%clk 0:01:25]}  Rxa3 {[%clk 0:02:16]} 17. Qxa3 {[%clk 0:01:25]}  Bf8 {[%clk 0:02:03]} 18. Ra1 {[%clk 0:01:21]}  Ng4 {[%clk 0:02:02]} 19. Nd1 {[%clk 0:01:18]}  c5 {[%clk 0:01:59]} 20. b5 {[%clk 0:01:14]}  Nd4 {[%clk 0:01:59]} 21. Qa7 {[%clk 0:01:10]}  Qxa7 {[%clk 0:01:53]} 22. Rxa7 {[%clk 0:01:11]}  Rb8 {[%clk 0:01:53]} 23. Nc3 {[%clk 0:01:01]}  Be7 {[%clk 0:01:47]} 24. Nd5 {[%clk 0:01:01]}  Bd8 {[%clk 0:01:47]} 25. Nxd4 {[%clk 0:00:51]}  exd4 {[%clk 0:01:46]} 26. Bc1 {[%clk 0:00:51]}  Ne5 {[%clk 0:01:44]} 27. Bf1 {[%clk 0:00:50]}  Be6 {[%clk 0:01:17]} 28. f4 {[%clk 0:00:44]}  Nf3+ {[%clk 0:01:03]} 29. Kg2 {[%clk 0:00:34]}  Ne1+ {[%clk 0:01:03]} 30. Kf2 {[%clk 0:00:34]}  Nc2 {[%clk 0:01:03]} 31. Bd2 {[%clk 0:00:20]}  Bxd5 {[%clk 0:01:01]} 32. exd5 {[%clk 0:00:19]}  Bb6 {[%clk 0:01:01]} 33. Ra2 {[%clk 0:00:18]}  Nb4 {[%clk 0:00:58]} 34. Ra4 {[%clk 0:00:18]}  Re8 {[%clk 0:00:51]} 35. Bxb4 {[%clk 0:00:16]}  cxb4 {[%clk 0:00:52]} 36. Rxb4 {[%clk 0:00:16]}  Ra8 {[%clk 0:00:52]} 37. Rb2 {[%clk 0:00:16]}  Kf8 {[%clk 0:00:51]} 38. Re2 {[%clk 0:00:15]}  Ra3 {[%clk 0:00:50]} 39. Re1 {[%clk 0:00:13]}  Ba5 {[%clk 0:00:48]} 40. Re4 {[%clk 0:00:12]}  Bc3 {[%clk 0:00:44]} 41. g4 {[%clk 0:00:11]}  b6 {[%clk 0:00:43]} 42. f5 {[%clk 0:00:11]}  gxf5 {[%clk 0:00:43]} 43. gxf5 {[%clk 0:00:12]}  Kg7 {[%clk 0:00:44]} 44. Be2 {[%clk 0:00:10]}  Kf6 {[%clk 0:00:43]} 45. Rh4 {[%clk 0:00:10]}  Kxf5 {[%clk 0:00:36]} 46. Rxh7 {[%clk 0:00:10]}  Kg6 {[%clk 0:00:36]} 47. Rh8 {[%clk 0:00:10]}  Bd2 {[%clk 0:00:35]} 48. Rb8 {[%clk 0:00:08]}  Be3+ {[%clk 0:00:35]} 49. Kf3 {[%clk 0:00:08]}  Ra1 {[%clk 0:00:29]} 50. Rxb6 {[%clk 0:00:09]}  Rh1 {[%clk 0:00:29]} 51. Rxd6+ {[%clk 0:00:09]}  Kf5 {[%clk 0:00:29]} 52. b6 {[%clk 0:00:08]}  Rxh2 {[%clk 0:00:28]} 53. b7 {[%clk 0:00:07]}  Rh8 {[%clk 0:00:28]} 54. Rb6 {[%clk 0:00:07]}  Bf4 {[%clk 0:00:27]} 55. Kg2 {[%clk 0:00:06]}  Rh2+ {[%clk 0:00:27]} 56. Kf1 {[%clk 0:00:06]}  Bb8 {[%clk 0:00:20]} 57. Bf3 {[%clk 0:00:05]}  Kf4 {[%clk 0:00:20]} 58. Be4 {[%clk 0:00:05]}  Ke3 {[%clk 0:00:20]} 59. c5 {[%clk 0:00:04]}  Rf2+ {[%clk 0:00:20]} 60. Kg1 {[%clk 0:00:04]}  Rc2 {[%clk 0:00:20]} 61. d6 {[%clk 0:00:04]}  Rxc5 {[%clk 0:00:18]} 62. Rc6 {[%clk 0:00:04]}  Rxc6 {[%clk 0:00:17]} 63. Bxc6 {[%clk 0:00:05]}  Bxd6 {[%clk 0:00:18]} 64. Be4 {[%clk 0:00:05]}  Kf4 {[%clk 0:00:17]} 65. Kf2 {[%clk 0:00:05]}  f5 {[%clk 0:00:17]} 66. Bd5 {[%clk 0:00:05]}  Ke5 {[%clk 0:00:18]} 67. Bc4 {[%clk 0:00:05]}  Kf4 {[%clk 0:00:18]} 68. Ke2 {[%clk 0:00:06]}  Kg3 {[%clk 0:00:19]} 69. Kf1 {[%clk 0:00:06]}  f4 {[%clk 0:00:19]} 70. Bd5 {[%clk 0:00:07]}  f3 {[%clk 0:00:19]} 71. Be4 {[%clk 0:00:07]}  f2 {[%clk 0:00:20]} 72. Bd5 {[%clk 0:00:07]}  Bb8 {[%clk 0:00:20]} 73. Be4 {[%clk 0:00:08]}  Bc7 {[%clk 0:00:21]} 74. Bc6 {[%clk 0:00:08]}  Bb8 {[%clk 0:00:21]} 75. Be4 {[%clk 0:00:09]}  Bc7 {[%clk 0:00:22]} 76. Bc6 {[%clk 0:00:09]}  Bb8 {[%clk 0:00:22]} 77. Be4 {[%clk 0:00:10]} 1/2-1/2


[Site "https://www.chess.com"]

[Event "Titled Tuesday Blitz December 06 Early 2022"]
[White "Mkrtchian, Lilit"]
[Black "Salem, A.R. Saleh"]
[WhiteFideId "13300601"]
[BlackFideId "9301348"]
[WhiteElo "2316"]
[BlackElo "2633"]
[Result "0-1"]
[Round "01"]
[TimeControl "180+1"]
[Date "2022.12.06"]
[WhiteClock "0:00:01"]
[BlackClock "0:02:17"]

1. Nf3 {[%clk 0:02:39]}  Nf6 {[%clk 0:02:59]} 2. g3 {[%clk 0:02:32]}  d5 {[%clk 0:02:59]} 3. Bg2 {[%clk 0:02:25]}  c5 {[%clk 0:03:00]} 4. O-O {[%clk 0:02:17]}  e6 {[%clk 0:02:59]} 5. d3 {[%clk 0:02:06]}  Be7 {[%clk 0:02:59]} 6. e4 {[%clk 0:01:57]}  O-O {[%clk 0:03:00]} 7. Bf4 {[%clk 0:01:49]}  Nc6 {[%clk 0:02:59]} 8. a4 {[%clk 0:01:21]}  b6 {[%clk 0:02:56]} 9. Re1 {[%clk 0:01:09]}  Bb7 {[%clk 0:02:56]} 10. e5 {[%clk 0:01:08]}  Nd7 {[%clk 0:02:56]} 11. h4 {[%clk 0:01:06]}  a6 {[%clk 0:02:51]} 12. Nbd2 {[%clk 0:01:01]}  b5 {[%clk 0:02:51]} 13. Nf1 {[%clk 0:00:56]}  d4 {[%clk 0:02:48]} 14. N1h2 {[%clk 0:00:19]}  Nb6 {[%clk 0:02:48]} 15. axb5 {[%clk 0:00:17]}  axb5 {[%clk 0:02:49]} 16. Ng4 {[%clk 0:00:15]}  Rxa1 {[%clk 0:02:47]} 17. Qxa1 {[%clk 0:00:14]}  Nd5 {[%clk 0:02:48]} 18. Bd2 {[%clk 0:00:13]}  Ncb4 {[%clk 0:02:49]} 19. Qd1 {[%clk 0:00:12]}  Qa8 {[%clk 0:02:49]} 20. Bc1 {[%clk 0:00:09]}  Nb6 {[%clk 0:02:49]} 21. Bg5 {[%clk 0:00:08]}  Bxg5 {[%clk 0:02:32]} 22. hxg5 {[%clk 0:00:09]}  Nxc2 {[%clk 0:02:32]} 23. Qxc2 {[%clk 0:00:08]}  Bxf3 {[%clk 0:02:33]} 24. Bxf3 {[%clk 0:00:08]}  Qxf3 {[%clk 0:02:33]} 25. Nh2 {[%clk 0:00:07]}  Qd5 {[%clk 0:02:32]} 26. Ra1 {[%clk 0:00:06]}  Qxe5 {[%clk 0:02:30]} 27. Ra6 {[%clk 0:00:05]}  Rb8 {[%clk 0:02:24]} 28. Nf3 {[%clk 0:00:04]}  Qd5 {[%clk 0:02:24]} 29. Qe2 {[%clk 0:00:03]}  Nd7 {[%clk 0:02:22]} 30. Qe4 {[%clk 0:00:02]}  Qxe4 {[%clk 0:02:22]} 31. dxe4 {[%clk 0:00:03]}  d3 {[%clk 0:02:21]} 32. Rd6 {[%clk 0:00:03]}  Nb6 {[%clk 0:02:19]} 33. Rxd3 {[%clk 0:00:03]}  c4 {[%clk 0:02:19]} 34. Rd6 {[%clk 0:00:03]}  Na4 {[%clk 0:02:19]} 35. Rd2 {[%clk 0:00:02]}  Nc5 {[%clk 0:02:20]} 36. e5 {[%clk 0:00:02]}  g6 {[%clk 0:02:17]} 37. Rc2 {[%clk 0:00:01]}  Rd8 {[%clk 0:02:17]} 0-1


[Site "https://www.chess.com"]

[Event "Titled Tuesday Blitz December 06 Early 2022"]
[White "Mogranzini, Roberto"]
[Black "Lenderman, Aleksandr"]
[WhiteFideId "810894"]
[BlackFideId "2021285"]
[WhiteElo "2469"]
[BlackElo "2607"]
[Result "0-1"]
[Round "01"]
[TimeControl "180+1"]
[Date "2022.12.06"]
[WhiteClock "0:00:22"]
[BlackClock "0:01:30"]

1. e4 {[%clk 0:02:39]}  e6 {[%clk 0:02:53]} 2. d4 {[%clk 0:02:29]}  d5 {[%clk 0:02:47]} 3. Bd3 {[%clk 0:02:21]}  dxe4 {[%clk 0:02:42]} 4. Bxe4 {[%clk 0:02:17]}  Nf6 {[%clk 0:02:38]} 5. Bf3 {[%clk 0:02:13]}  c5 {[%clk 0:02:31]} 6. Ne2 {[%clk 0:02:09]}  Nc6 {[%clk 0:02:29]} 7. Be3 {[%clk 0:02:08]}  Nd5 {[%clk 0:02:27]} 8. dxc5 {[%clk 0:01:37]}  Nxe3 {[%clk 0:02:26]} 9. Bxc6+ {[%clk 0:01:37]}  bxc6 {[%clk 0:02:25]} 10. Qxd8+ {[%clk 0:01:38]}  Kxd8 {[%clk 0:02:25]} 11. fxe3 {[%clk 0:01:39]}  Bxc5 {[%clk 0:02:25]} 12. Kf2 {[%clk 0:01:37]}  Ke7 {[%clk 0:02:25]} 13. Nbc3 {[%clk 0:01:36]}  e5 {[%clk 0:02:23]} 14. Ne4 {[%clk 0:01:12]}  Bb6 {[%clk 0:02:23]} 15. b4 {[%clk 0:01:09]}  a5 {[%clk 0:02:20]} 16. a3 {[%clk 0:01:09]}  Rd8 {[%clk 0:02:14]} 17. Rhd1 {[%clk 0:00:51]}  Rxd1 {[%clk 0:02:13]} 18. Rxd1 {[%clk 0:00:51]}  axb4 {[%clk 0:02:13]} 19. axb4 {[%clk 0:00:52]}  Ra2 {[%clk 0:02:03]} 20. Rd2 {[%clk 0:00:52]}  Bf5 {[%clk 0:01:56]} 21. c3 {[%clk 0:00:50]}  Ra3 {[%clk 0:01:50]} 22. Nd6 {[%clk 0:00:44]}  Be6 {[%clk 0:01:48]} 23. Ne4 {[%clk 0:00:25]}  h6 {[%clk 0:01:38]} 24. h3 {[%clk 0:00:21]}  f5 {[%clk 0:01:36]} 25. Nc5 {[%clk 0:00:21]}  Bxc5 {[%clk 0:01:34]} 26. bxc5 {[%clk 0:00:22]}  Bc4 {[%clk 0:01:34]} 27. Rb2 {[%clk 0:00:21]}  Bxe2 {[%clk 0:01:30]} 28. Kxe2 {[%clk 0:00:22]}  Rxc3 {[%clk 0:01:30]} 29. Rb7+ {[%clk 0:00:22]}  Kf6 {[%clk 0:01:30]} 0-1


[Site "https://www.chess.com"]